fUSD/lending_fUSD_20250223
["ID","MTS","AMOUNT","RATE_DAILY","PERIOD"]
[354212817,1740349876110,-150.0,0.00016767,2]
[354212818,1740349876119,-500.0,0.00016767,2]
[354212819,1740349876128,-500.0,0.00016767,2]
[354212820,1740349876138,-2581.76,0.00016767,2]
[354212821,1740349876147,-2181.78,0.00016767,2]
[354212822,1740349876156,-2756.2,0.00016767,2]
[354212823,1740349876165,-500.0,0.00016767,2]
[354212824,1740349876175,-1745.58,0.00016767,2]
[354212825,1740349876184,-3980.89,0.00016767,2]
[354212826,1740349876192,-500.0,0.00016767,2]
[354212827,1740349876202,-5532.19,0.00016767,2]
[354212828,1740349876211,-657.2,0.00016767,2]
[354212829,1740349876220,-2341.48,0.00016767,2]
[354212830,1740349876229,-500.0,0.00016767,2]
[354212831,1740349876238,-667.62,0.00016767,2]
[354212832,1740349876247,-4890.16,0.00016767,2]
[354212833,1740349876256,-500.0,0.00016767,2]
[354212834,1740349876265,-2345.07,0.00016767,2]
[354212835,1740349876274,-500.0,0.00016767,2]
[354212836,1740349876283,-1229.42,0.00016767,2]
[354212837,1740349876293,-517.65,0.00016767,2]
[354212838,1740349876302,-1325.19,0.00016767,2]
[354212839,1740349876311,-500.67,0.00016767,2]
[354212840,1740349876321,-973.9,0.00016767,2]
[354212841,1740349876331,-3825.62,0.00016767,2]
[354212842,1740349876342,-644.39,0.00016767,2]
[354212843,1740349876352,-5219.19,0.00016767,2]
[354212844,1740349876362,-3401.5,0.00016767,2]
[354212845,1740349876372,-1228.65,0.00016767,2]
[354212846,1740349876381,-500.0,0.00016767,2]
[354212847,1740349876391,-9468.28,0.00016767,2]
[354212848,1740349876401,-1584.73,0.00016767,2]
[354212849,1740349876411,-500.0,0.00016767,2]
[354212850,1740349876421,-500.0,0.00016767,2]
[354212851,1740349876432,-200.0,0.00016768,2]
[354212852,1740349876442,-200.0,0.00016768,2]
[354212853,1740349876452,-200.0,0.00016768,2]
[354212854,1740349876461,-150.0,0.00016773,2]
[354212855,1740349876473,-150.0,0.00016774,2]
[354212856,1740349876483,-155.26,0.00016781,2]
[354212857,1740349876494,-150.0,0.00016785,2]
[354212858,1740349876503,-150.0,0.0001679,2]
[354212859,1740349876516,-150.0,0.00016818,2]
[354212860,1740349876525,-730.7,0.00016821,2]
[354212861,1740349876534,-322.70710579,0.00016822,2]
[354212862,1740349876544,-601.12,0.00016849,2]
[354212863,1740349876554,-500.0,0.00016849,2]
[354212864,1740349876564,-500.0,0.00016849,2]
[354212865,1740349876572,-500.0,0.00016849,2]
[354212866,1740349876582,-500.0,0.00016849,2]
[354212867,1740349876593,-500.0,0.00016849,2]
[354212868,1740349876605,-1093.12,0.00016849,2]
[354212869,1740349876614,-1156.11,0.00016849,2]
[354212870,1740349876623,-1348.02,0.00016849,2]
[354212871,1740349876632,-500.0,0.00016849,2]
[354212872,1740349876641,-895.6,0.00016849,2]
[354212873,1740349876650,-516.81,0.00016849,2]
[354212874,1740349876660,-915.35,0.00016849,2]
[354212875,1740349876670,-500.0,0.00016849,2]
[354212876,1740349876681,-500.0,0.00016849,2]
[354212877,1740349876691,-500.0,0.00016849,2]
[354212878,1740349876701,-1694.17,0.00016849,2]
[354212879,1740349876710,-1649.69,0.00016849,2]
[354212880,1740349876720,-500.0,0.00016849,2]
[354212881,1740349876733,-681.06,0.00016849,2]
[354212882,1740349876742,-793.26,0.00016849,2]
[354212883,1740349876751,-500.0,0.00016849,2]
[354212884,1740349876761,-500.0,0.00016849,2]
[354212885,1740349876770,-500.0,0.00016849,2]
[354212886,1740349876779,-500.0,0.00016849,2]
[354212887,1740349876789,-500.0,0.00016849,2]
[354212888,1740349876798,-645.41,0.00016849,2]
[354212889,1740349876808,-538.87220076,0.00016849,2]
[354212890,1740349876818,-500.0,0.00016849,2]
[354212891,1740349876829,-523.26,0.00016849,2]
[354212892,1740349876838,-798.0,0.00016849,2]
[354212893,1740349876847,-500.0,0.00016849,2]
[354212894,1740349876857,-500.0,0.00016849,2]
[354212895,1740349876866,-500.0,0.00016849,2]
[354212896,1740349876875,-1129.2,0.00016849,2]
[354212897,1740349876884,-500.0,0.00016849,2]
[354212898,1740349876893,-500.0,0.00016849,2]
[354212899,1740349876902,-500.0,0.00016849,2]
[354212900,1740349876910,-500.0,0.00016849,2]
[354212901,1740349876919,-500.0,0.00016849,2]
[354212902,1740349876928,-1431.86,0.00016849,2]
[354212903,1740349876937,-1421.57,0.00016849,2]
[354212904,1740349876947,-500.0,0.00016849,2]
[354212905,1740349876956,-555.63180708,0.00016849,2]
[354212906,1740349876966,-500.0,0.00016849,2]
[354212907,1740349876976,-500.0,0.00016849,2]
[354212908,1740349876987,-500.0,0.00016849,2]
[354212909,1740349876997,-500.0,0.00016849,2]
[354212910,1740349877006,-763.43,0.00016849,2]
[354212911,1740349877016,-863.75,0.00016849,2]
[354212912,1740349877024,-1090.21,0.00016849,2]
[354212913,1740349877035,-500.0,0.00016849,2]
[354212914,1740349877044,-649.37,0.00016849,2]
[354212915,1740349877053,-609.6,0.00016849,2]
[354212916,1740349877062,-500.0,0.00016849,2]
[354212917,1740349877072,-1597.72,0.00016849,2]
[354212918,1740349877081,-500.0,0.00016849,2]
[354212919,1740349877091,-500.0,0.00016849,2]
[354212920,1740349877102,-500.0,0.00016849,2]
[354212921,1740349877111,-500.0,0.00016849,2]
[354212922,1740349877120,-1440.9,0.00016849,2]
[354212923,1740349877129,-500.0,0.00016849,2]
[354212924,1740349877138,-592.49,0.00016849,2]
[354212925,1740349877147,-1192.98,0.00016849,2]
[354212926,1740349877156,-500.0,0.00016849,2]
[354212927,1740349877165,-500.0,0.00016849,2]
[354212928,1740349877174,-500.0,0.00016849,2]
[354212929,1740349877183,-1240.88,0.00016849,2]
[354212930,1740349877192,-782.65,0.00016849,2]
[354212931,1740349877201,-1118.85,0.00016849,2]
[354212932,1740349877210,-500.0,0.00016849,2]
[354212933,1740349877219,-500.0,0.00016849,2]
[354212934,1740349877228,-360.3322011,0.00016849,2]
[354212935,1740349877237,-500.0,0.00016849,2]
[354212936,1740349877246,-1621.04,0.00016849,2]
[354212937,1740349877255,-273.2,0.00016849,2]
[354212938,1740349877264,-614.67,0.00016849,2]
[354212939,1740349877273,-1198.36,0.00016849,2]
[354212940,1740349877282,-500.0,0.00016849,2]
[354212941,1740349877291,-608.12,0.00016849,2]
[354212942,1740349877300,-387.07438299,0.00016849,2]
[354212943,1740349877309,-671.15,0.00016849,2]
[354212944,1740349877318,-564.11,0.00016849,2]
[354212945,1740349877327,-500.0,0.00016849,2]
[354212946,1740349877336,-500.0,0.00016849,2]
[354212947,1740349877345,-500.0,0.00016849,2]
[354212948,1740349877355,-500.0,0.00016849,2]
[354212949,1740349877364,-500.0,0.00016849,2]
[354212950,1740349877373,-904.88,0.00016849,2]
[354212951,1740349877382,-500.0,0.00016849,2]
[354212952,1740349877391,-500.0,0.00016849,2]
[354212953,1740349877401,-500.0,0.00016849,2]
[354212954,1740349877410,-500.0,0.00016849,2]
[354212955,1740349877419,-503.91,0.00016849,2]
[354212956,1740349877428,-500.0,0.00016849,2]
[354212957,1740349877437,-500.0,0.00016849,2]
[354212958,1740349877446,-500.0,0.00016849,2]
[354212959,1740349877455,-679.91,0.00016849,2]
[354212960,1740349877464,-550.2,0.00016849,2]
[354212961,1740349877473,-795.19,0.00016849,2]
[354212962,1740349877482,-500.0,0.00016849,2]
[354212963,1740349877491,-1739.38,0.00016849,2]
[354212964,1740349877500,-748.37,0.00016849,2]
[354212965,1740349877510,-627.61418155,0.00016849,2]
[354212966,1740349877520,-500.0,0.00016849,2]
[354212967,1740349877529,-708.49,0.00016849,2]
[354212968,1740349877539,-620.41,0.00016849,2]
[354212969,1740349877548,-500.0,0.00016849,2]
[354212970,1740349877557,-500.0,0.00016849,2]
[354212971,1740349877567,-500.0,0.00016849,2]
[354212972,1740349877576,-500.0,0.00016849,2]
[354212973,1740349877585,-500.0,0.00016849,2]
[354212974,1740349877594,-500.0,0.00016849,2]
[354212975,1740349877603,-677.65,0.00016849,2]
[354212976,1740349877612,-681.58,0.00016849,2]
[354212977,1740349877622,-500.0,0.00016849,2]
[354212978,1740349877631,-514.07,0.00016849,2]
[354212979,1740349877640,-1558.42,0.00016849,2]
[354212980,1740349877649,-500.0,0.00016849,2]
[354212981,1740349877658,-500.0,0.00016849,2]
[354212982,1740349877667,-500.0,0.00016849,2]
[354212983,1740349877675,-602.81,0.00016849,2]
[354212984,1740349877684,-1016.25,0.00016849,2]
[354212985,1740349877693,-500.0,0.00016849,2]
[354212986,1740349877703,-500.0,0.00016849,2]
[354212987,1740349877712,-500.0,0.00016849,2]
[354212988,1740349877721,-500.0,0.00016849,2]
[354212989,1740349877731,-565.85,0.00016849,2]
[354212990,1740349877739,-500.0,0.00016849,2]
[354212991,1740349877748,-500.0,0.00016849,2]
[354212992,1740349877758,-708.16,0.00016849,2]
[354212993,1740349877768,-500.0,0.00016849,2]
[354212994,1740349877777,-500.0,0.00016849,2]
[354212995,1740349877786,-512.95,0.00016849,2]
[354212996,1740349877795,-500.0,0.00016849,2]
[354212997,1740349877804,-563.72,0.00016849,2]
[354212998,1740349877814,-1362.33,0.00016849,2]
[354212999,1740349877823,-500.0,0.00016849,2]
[354213000,1740349877832,-500.0,0.00016849,2]
[354213001,1740349877841,-1012.62,0.00016849,2]
[354213002,1740349877851,-1837.84,0.00016849,2]
[354213003,1740349877860,-2529.64,0.00016849,2]
[354213004,1740349877869,-500.0,0.00016849,2]
[354213005,1740349877878,-500.0,0.00016849,2]
[354213006,1740349877888,-500.0,0.00016849,2]
[354213007,1740349877897,-500.0,0.00016849,2]
[354213008,1740349877907,-783.76,0.00016849,2]
[354213009,1740349877916,-545.27,0.00016849,2]
[354213010,1740349877926,-451.83108646,0.00016849,2]
[354213011,1740349877935,-500.0,0.00016849,2]
[354213012,1740349877944,-1030.81,0.00016849,2]
[354213013,1740349877953,-500.0,0.00016849,2]
[354213014,1740349877963,-500.37,0.00016849,2]
[354213015,1740349877974,-500.0,0.00016849,2]
[354213016,1740349877983,-717.32,0.00016849,2]
[354213017,1740349877992,-797.57,0.00016849,2]
[354213018,1740349878001,-578.44,0.00016849,2]
[354213019,1740349878010,-500.0,0.00016849,2]
[354213020,1740349878019,-756.75,0.00016849,2]
[354213021,1740349878027,-1497.62,0.00016849,2]
[354213022,1740349878037,-1770.57,0.00016849,2]
[354213023,1740349878046,-784.78,0.00016849,2]
[354213024,1740349878055,-1765.88,0.00016849,2]
[354213025,1740349878064,-2582.73,0.00016849,2]
[354213026,1740349878074,-500.0,0.00016849,2]
[354213027,1740349878083,-564.37,0.00016849,2]
[354213028,1740349878092,-1422.48,0.00016849,2]
[354213029,1740349878101,-500.0,0.00016849,2]
[354213030,1740349878111,-2229.59,0.00016849,2]
[354213031,1740349878120,-500.0,0.00016849,2]
[354213032,1740349878129,-500.0,0.00016849,2]
[354213033,1740349878139,-1800.36,0.00016849,2]
[354213034,1740349878148,-500.0,0.00016849,2]
[354213035,1740349878157,-500.0,0.00016849,2]
[354213036,1740349878166,-296.64162116,0.00016849,2]
[354213037,1740349878175,-2222.23,0.00016849,2]
[354213038,1740349878184,-500.0,0.00016849,2]
[354213039,1740349878193,-500.0,0.00016849,2]
[354213040,1740349878202,-500.0,0.00016849,2]
[354213041,1740349878211,-500.0,0.00016849,2]
[354213042,1740349878221,-564.96,0.00016849,2]
[354213043,1740349878230,-500.0,0.00016849,2]
[354213044,1740349878238,-681.63,0.00016849,2]
[354213045,1740349878247,-558.55,0.00016849,2]
[354213046,1740349878257,-500.0,0.00016849,2]
[354213047,1740349878266,-500.0,0.00016849,2]
[354213048,1740349878275,-1629.15,0.00016849,2]
[354213049,1740349878284,-1542.47,0.00016849,2]
[354213050,1740349878294,-1535.15,0.00016849,2]
[354213051,1740349878302,-561.05,0.00016849,2]
[354213052,1740349878311,-738.85,0.00016849,2]
[354213053,1740349878320,-2269.58,0.00016849,2]
[354213054,1740349878329,-868.84,0.00016849,2]
[354213055,1740349878338,-1335.0,0.00016849,2]
[354213056,1740349878348,-1672.07,0.00016849,2]
[354213057,1740349878357,-2109.65,0.00016849,2]
[354213058,1740349878366,-500.0,0.00016849,2]
[354213059,1740349878375,-1086.37,0.00016849,2]
[354213060,1740349878384,-1704.59,0.00016849,2]
[354213061,1740349878392,-691.82,0.00016849,2]
[354213062,1740349878402,-1370.41,0.00016849,2]
[354213063,1740349878411,-500.0,0.00016849,2]
[354213064,1740349878420,-500.0,0.00016849,2]
[354213065,1740349878430,-781.08,0.00016849,2]
[354213066,1740349878439,-650.9,0.00016849,2]
[354213067,1740349878448,-1228.32,0.00016849,2]
[354213068,1740349878457,-2394.76,0.00016849,2]
[354213069,1740349878466,-551.29,0.00016849,2]
[354213070,1740349878475,-1495.46,0.00016849,2]
[354213071,1740349878484,-500.0,0.00016849,2]
[354213072,1740349878493,-500.0,0.00016849,2]
[354213073,1740349878503,-635.58,0.00016849,2]
[354213074,1740349878514,-1100.86,0.00016849,2]
[354213075,1740349878524,-556.09882405,0.00016849,2]
[354213076,1740349878533,-500.0,0.00016849,2]
[354213077,1740349878542,-991.31,0.00016849,2]
[354213078,1740349878551,-1051.7,0.00016849,2]
[354213079,1740349878563,-500.0,0.00016849,2]
[354213080,1740349878572,-693.94,0.00016849,2]
[354213081,1740349878582,-776.59,0.00016849,2]
[354213082,1740349878592,-1548.96,0.00016849,2]
[354213083,1740349878601,-623.46,0.00016849,2]
[354213084,1740349878610,-500.0,0.00016849,2]
[354213085,1740349878620,-500.0,0.00016849,2]
[354213086,1740349878629,-2549.36,0.00016849,2]
[354213087,1740349878638,-500.0,0.00016849,2]
[354213088,1740349878647,-500.0,0.00016849,2]
[354213089,1740349878656,-500.0,0.00016849,2]
[354213090,1740349878665,-1703.42,0.00016849,2]
[354213091,1740349878675,-869.03,0.00016849,2]
[354213092,1740349878684,-563.36,0.00016849,2]
[354213093,1740349878692,-500.0,0.00016849,2]
[354213094,1740349878701,-960.88,0.00016849,2]
[354213095,1740349878709,-500.0,0.00016849,2]
[354213096,1740349878717,-2267.54,0.00016849,2]
[354213097,1740349878726,-1037.4,0.00016849,2]
[354213098,1740349878735,-1420.41,0.00016849,2]
[354213099,1740349878744,-4350.43,0.00016849,2]
[354213100,1740349878753,-535.56,0.00016849,2]
[354213101,1740349878762,-4350.43,0.00016849,2]
[354213102,1740349878771,-4350.43,0.00016849,2]
[354213103,1740349878780,-4350.43,0.00016849,2]
[354213104,1740349878789,-500.0,0.00016849,2]
[354213105,1740349878798,-4350.43,0.00016849,2]
[354213106,1740349878807,-1222.57,0.00016849,2]
[354213107,1740349878816,-4350.43,0.00016849,2]
[354213108,1740349878824,-4350.43,0.00016849,2]
[354213109,1740349878833,-4350.43,0.00016849,2]
[354213110,1740349878842,-4350.43,0.00016849,2]
[354213111,1740349878851,-500.0,0.00016849,2]
[354213112,1740349878860,-4350.43,0.00016849,2]
[354213113,1740349878869,-4350.43,0.00016849,2]
[354213114,1740349878878,-4350.43,0.00016849,2]
[354213115,1740349878887,-4350.43,0.00016849,2]
[354213116,1740349878897,-4350.43,0.00016849,2]
[354213117,1740349878906,-4350.43,0.00016849,2]
[354213118,1740349878915,-4350.43,0.00016849,2]
[354213119,1740349878925,-4350.43,0.00016849,2]
[354213120,1740349878934,-4350.43,0.00016849,2]
[354213121,1740349878943,-4350.43,0.00016849,2]
[354213122,1740349878952,-4350.44083088,0.00016849,2]
[354213123,1740349878962,-786.04,0.00016849,2]
[354213124,1740349878971,-3008.1,0.00016849,2]
[354213125,1740349878980,-582.21,0.00016849,2]
[354213126,1740349878989,-1442.37,0.00016849,2]
[354213127,1740349878998,-507.67,0.00016849,2]
[354213128,1740349879007,-500.0,0.00016849,2]
[354213129,1740349879016,-1449.59,0.00016849,2]
[354213130,1740349879025,-500.0,0.00016849,2]
[354213131,1740349879035,-1488.88,0.00016849,2]
[354213132,1740349879045,-1426.91,0.00016849,2]
[354213133,1740349879054,-500.0,0.00016849,2]
[354213134,1740349879063,-2596.96,0.00016849,2]
[354213135,1740349879073,-1936.37,0.00016849,2]
[354213136,1740349879082,-500.0,0.00016849,2]
[354213137,1740349879091,-500.0,0.00016849,2]
[354213138,1740349879100,-2442.27,0.00016849,2]
[354213139,1740349879109,-2283.06,0.00016849,2]
[354213140,1740349879118,-3372.27,0.00016849,2]
[354213141,1740349879260,-588.32125766,0.00016849,2]
[354213142,1740349879270,-500.0,0.00016849,2]
[354213143,1740349879279,-297.89467151,0.00016849,2]
[354213144,1740349879288,-1222.2,0.00016849,2]
[354213145,1740349879298,-1507.49,0.00016849,2]
[354213146,1740349879307,-602.88,0.00016849,2]
[354213147,1740349879317,-500.0,0.00016849,2]
[354213148,1740349879326,-1664.77,0.00016849,2]
[354213149,1740349879335,-500.0,0.00016849,2]
[354213150,1740349879344,-1154.78,0.00016849,2]
[354213151,1740349879353,-536.34,0.00016849,2]
[354213152,1740349879361,-1756.63,0.00016849,2]
[354213153,1740349879370,-986.27,0.00016849,2]
[354213154,1740349879380,-1157.96,0.00016849,2]
[354213155,1740349879389,-1016.26,0.00016849,2]
[354213156,1740349879399,-923.34,0.00016849,2]
[354213157,1740349879408,-1532.84,0.00016849,2]
[354213158,1740349879417,-500.0,0.00016849,2]
[354213159,1740349879426,-1904.49,0.00016849,2]
[354213160,1740349879435,-500.0,0.00016849,2]
[354213161,1740349879444,-500.0,0.00016849,2]
[354213162,1740349879454,-500.0,0.00016849,2]
[354213163,1740349879463,-1326.46,0.00016849,2]
[354213164,1740349879472,-801.78,0.00016849,2]
[354213165,1740349879482,-612.54,0.00016849,2]
[354213166,1740349879491,-1334.47,0.00016849,2]
[354213167,1740349879500,-590.04,0.00016849,2]
[354213168,1740349879511,-1385.79,0.00016849,2]
[354213169,1740349879521,-500.0,0.00016849,2]
[354213170,1740349879530,-2494.38,0.00016849,2]
[354213171,1740349879539,-1090.53,0.00016849,2]
[354213172,1740349879548,-507.42,0.00016849,2]
[354213173,1740349879557,-500.0,0.00016849,2]
[354213174,1740349879566,-500.0,0.00016849,2]
[354213175,1740349879575,-500.0,0.00016849,2]
[354213176,1740349879584,-1543.81,0.00016849,2]
[354213177,1740349879594,-573.47,0.00016849,2]
[354213178,1740349879603,-1095.55,0.00016849,2]
[354213179,1740349879612,-649.03,0.00016849,2]
[354213180,1740349879622,-2049.23,0.00016849,2]
[354213181,1740349879631,-500.0,0.00016849,2]
[354213182,1740349879641,-646.72,0.00016849,2]
[354213183,1740349879651,-1521.96,0.00016849,2]
[354213184,1740349879660,-3220.12,0.00016849,2]
[354213185,1740349879670,-1456.53,0.00016849,2]
[354213186,1740349879679,-500.0,0.00016849,2]
[354213187,1740349879688,-500.0,0.00016849,2]
[354213188,1740349879698,-1723.53,0.00016849,2]
[354213189,1740349879707,-500.0,0.00016849,2]
[354213190,1740349879717,-2211.51,0.00016849,2]
[354213191,1740349879728,-2287.56,0.00016849,2]
[354213192,1740349879737,-1135.98,0.00016849,2]
[354213193,1740349879746,-743.91,0.00016849,2]
[354213194,1740349879755,-450.8234759,0.00016849,2]
[354213195,1740349879764,-1305.88,0.00016849,2]
[354213196,1740349879773,-684.25,0.00016849,2]
[354213197,1740349879782,-3463.87,0.00016849,2]
[354213198,1740349879791,-500.0,0.00016849,2]
[354213199,1740349879800,-1527.29,0.00016849,2]
[354213200,1740349879808,-500.0,0.00016849,2]
[354213201,1740349879818,-641.03,0.00016849,2]
[354213202,1740349879827,-1385.92,0.00016849,2]
[354213203,1740349879836,-3565.44,0.00016849,2]
[354213204,1740349879845,-500.0,0.00016849,2]
[354213205,1740349879854,-500.0,0.00016849,2]
[354213206,1740349879863,-500.0,0.00016849,2]
[354213207,1740349879873,-2201.89,0.00016849,2]
[354213208,1740349879882,-500.0,0.00016849,2]
[354213209,1740349879891,-798.67,0.00016849,2]
[354213210,1740349879903,-500.0,0.00016849,2]
[354213211,1740349879913,-3735.7,0.00016849,2]
[354213212,1740349879923,-2015.41,0.00016849,2]
[354213213,1740349879932,-1466.3,0.00016849,2]
[354213214,1740349879941,-2161.56,0.00016849,2]
[354213215,1740349879950,-640.38,0.00016849,2]
[354213216,1740349879959,-1420.45,0.00016849,2]
[354213217,1740349879969,-2440.94,0.00016849,2]
[354213218,1740349879979,-2120.49,0.00016849,2]
[354213219,1740349879988,-500.0,0.00016849,2]
[354213220,1740349879998,-833.49,0.00016849,2]
[354213221,1740349880007,-1351.27,0.00016849,2]
[354213222,1740349880017,-1892.36,0.00016849,2]
[354213223,1740349880026,-1018.29,0.00016849,2]
[354213224,1740349880035,-1914.53,0.00016849,2]
[354213225,1740349880044,-751.94,0.00016849,2]
[354213226,1740349880054,-500.0,0.00016849,2]
[354213227,1740349880063,-1195.11,0.00016849,2]
[354213228,1740349880072,-2313.01,0.00016849,2]
[354213229,1740349880082,-937.55,0.00016849,2]
[354213230,1740349880091,-1603.29,0.00016849,2]
[354213231,1740349880100,-2460.28,0.00016849,2]
[354213232,1740349880109,-2684.81,0.00016849,2]
[354213233,1740349880118,-1639.9,0.00016849,2]
[354213234,1740349880127,-664.68,0.00016849,2]
[354213235,1740349880136,-640.97,0.00016849,2]
[354213236,1740349880145,-500.0,0.00016849,2]
[354213237,1740349880156,-500.0,0.00016849,2]
[354213238,1740349880167,-2460.9,0.00016849,2]
[354213239,1740349880177,-1119.51,0.00016849,2]
[354213240,1740349880188,-1461.34,0.00016849,2]
[354213241,1740349880200,-566.65,0.00016849,2]
[354213242,1740349880209,-1538.59,0.00016849,2]
[354213243,1740349880218,-878.9,0.00016849,2]
[354213244,1740349880228,-1824.04,0.00016849,2]
[354213245,1740349880237,-500.0,0.00016849,2]
[354213246,1740349880247,-1470.35,0.00016849,2]
[354213247,1740349880256,-1582.89,0.00016849,2]
[354213248,1740349880266,-1847.63,0.00016849,2]
[354213249,1740349880275,-2678.53,0.00016849,2]
[354213250,1740349880285,-534.57191168,0.00016849,2]
[354213251,1740349880294,-769.48,0.00016849,2]
[354213252,1740349880303,-500.0,0.00016849,2]
[354213253,1740349880313,-554.7,0.00016849,2]
[354213254,1740349880323,-995.83,0.00016849,2]
[354213255,1740349880332,-1610.42,0.00016849,2]
[354213256,1740349880341,-500.0,0.00016849,2]
[354213257,1740349880350,-1338.31,0.00016849,2]
[354213258,1740349880360,-1308.01,0.00016849,2]
[354213259,1740349880369,-1717.52,0.00016849,2]
[354213260,1740349880378,-3188.14,0.00016849,2]
[354213261,1740349880387,-3533.31,0.00016849,2]
[354213262,1740349880396,-500.0,0.00016849,2]
[354213263,1740349880406,-1861.78,0.00016849,2]
[354213264,1740349880415,-8417.52,0.00016849,2]
[354213265,1740349880424,-2577.89,0.00016849,2]
[354213266,1740349880434,-500.0,0.00016849,2]
[354213267,1740349880443,-500.0,0.00016849,2]
[354213268,1740349880452,-500.0,0.00016849,2]
[354213269,1740349880461,-4381.0,0.00016849,2]
[354213270,1740349880470,-596.64,0.00016849,2]
[354213271,1740349880480,-2183.26,0.00016849,2]
[354213272,1740349880489,-1528.29,0.00016849,2]
[354213273,1740349880498,-1092.71,0.00016849,2]
[354213274,1740349880507,-554.44,0.00016849,2]
[354213275,1740349880521,-1946.14,0.00016849,2]
[354213276,1740349880530,-2935.59,0.00016849,2]
[354213277,1740349880539,-7337.03,0.00016849,2]
[354213278,1740349880548,-1364.9,0.00016849,2]
[354213279,1740349880558,-1174.78,0.00016849,2]
[354213280,1740349880567,-1276.51,0.00016849,2]
[354213281,1740349880577,-500.0,0.00016849,2]
[354213282,1740349880587,-620.99,0.00016849,2]
[354213283,1740349880596,-1306.34,0.00016849,2]
[354213284,1740349880605,-932.88,0.00016849,2]
[354213285,1740349880615,-2300.34,0.00016849,2]
[354213286,1740349880624,-980.06,0.00016849,2]
[354213287,1740349880633,-1469.11,0.00016849,2]
[354213288,1740349880642,-544.26,0.00016849,2]
[354213289,1740349880652,-2856.88,0.00016849,2]
[354213290,1740349880661,-4641.82,0.00016849,2]
[354213291,1740349880670,-500.0,0.00016849,2]
[354213292,1740349880679,-500.0,0.00016849,2]
[354213293,1740349880689,-2638.63,0.00016849,2]
[354213294,1740349880698,-3029.62,0.00016849,2]
[354213295,1740349880708,-500.0,0.00016849,2]
[354213296,1740349880717,-2673.9,0.00016849,2]
[354213297,1740349880727,-500.0,0.00016849,2]
[354213298,1740349880736,-500.0,0.00016849,2]
[354213299,1740349880745,-612.94,0.00016849,2]
[354213300,1740349880755,-3094.41,0.00016849,2]
[354213301,1740349880764,-2414.59,0.00016849,2]
[354213302,1740349880773,-500.0,0.00016849,2]
[354213303,1740349880783,-500.0,0.00016849,2]
[354213304,1740349880792,-693.42,0.00016849,2]
[354213305,1740349880802,-2972.96,0.00016849,2]
[354213306,1740349880811,-1574.92,0.00016849,2]
[354213307,1740349880820,-1174.07,0.00016849,2]
[354213308,1740349880829,-5022.74,0.00016849,2]
[354213309,1740349880838,-647.87,0.00016849,2]
[354213310,1740349880847,-500.0,0.00016849,2]
[354213311,1740349880856,-500.0,0.00016849,2]
[354213312,1740349880866,-906.72,0.00016849,2]
[354213313,1740349880875,-796.67,0.00016849,2]
[354213314,1740349880885,-500.0,0.00016849,2]
[354213315,1740349880894,-500.0,0.00016849,2]
[354213316,1740349880903,-500.0,0.00016849,2]